{"text_format":"1","workbook":"xlsx","n_sheets":3,"sheets":["Bestossung","Information","Tabelle3"],"not_rendered":{"charts":0,"images":0,"macros":0,"external_links":0,"defined_names":1,"comments":0,"pivot_tables":0},"unopened":[],"bounds":{"document_bytes":16777216,"sheet_cells":100000,"rows_first":2000,"rows_last":500,"rows_between":2000,"halvings":0,"cell_chars":16384,"cell_head_chars":4096},"cells_cut":0,"cells_raw":0,"read":"whole","date_system":"1900"}

{"sheet":"Bestossung","index":0,"n_rows":67,"n_cols":14,"rows_kept":67,"cut":false,"hidden":false,"merged":[[66,0,69,11],[10,9,10,11],[8,9,8,11],[9,9,9,11],[49,9,49,11],[48,9,48,11],[45,9,45,11],[43,9,43,11],[13,9,13,11],[47,9,47,11],[46,9,46,11],[65,0,65,5],[11,9,11,11],[12,9,12,11],[26,0,26,2],[3,9,3,11],[4,9,4,11],[5,9,5,11],[7,9,7,11],[6,9,6,11]]}
["Tierkategorie","GVE-Faktor","Anzahl Tiere","Datum Auftrieb","Datum Abtrieb","Alpdauer in Tagen","Normal- stösse NST","Bestossung in RGVE",null,".",null,null,null,"Kontr.Abtriebsdat"]
["Tiere der Rindergattung",null,"q","q","q"]
["Milchkühe",1,null,null,null,{"$f":"IF(OR(ISBLANK(D3),ISBLANK(E3)),0,E3-D3+1)","v":0},{"$f":"C3*B3*F3/100","v":0},{"$f":"B3*C3","v":0},null,"Anleitung",null,null,null,{"$f":"IF(AND(MONTH(E3)>9,MONTH(E3)<=12),1,\"\")","v":""}]
["Milchkühe",1,null,null,null,{"$f":"IF(OR(ISBLANK(D4),ISBLANK(E4)),0,E4-D4+1)","v":0},{"$f":"C4*B4*F4/100","v":0},{"$f":"B4*C4","v":0},null,"Die grün gefärbten Felder ausfüllen: \"Anzahl ",null,null,null,{"$f":"IF(AND(MONTH(E4)>9,MONTH(E4)<=12),1,\"\")","v":""}]
["Milchkühe",1,null,null,null,0,0,0,null,"Tiere\", \"Datum Auftrieb\", \"Datum Abtrieb\". ",null,null,null,""]
["Mutterkühe",1,null,null,null,0,0,0,null,"Tiere derselben Kategorie aber mit unter- ",null,null,null,""]
["Mutterkühe",1,null,null,null,0,0,0,null,"schiedlicher Alpungsdauer sind in separaten",null,null,null,""]
["andere Kühe",1,null,null,null,0,0,0,null,"Zeilen einzutragen. Daraus werden Bestossung",null,null,null,""]
["andere Kühe",1,null,null,null,0,0,0,null,"und Normalbesatz berechnet.",null,null,null,""]
["> 2 Jahre alt, weiblich",0.6,null,null,null,0,0,0,null,"Untenstehend den verfügten Normalbesatz ",null,null,null,""]
["> 2 Jahre alt, weiblich",0.6,null,null,null,{"$f":"IF(OR(ISBLANK(D11),ISBLANK(E11)),0,E11-D11+1)","v":0},{"$f":"C11*B11*F11/100","v":0},{"$f":"B11*C11","v":0},null,"eintragen, damit ein allfälliger Über- oder",null,null,null,""]
["> 2 Jahre alt, weiblich",0.6,null,null,null,0,0,0,null,"Unterbesatz korrekt angezeigt wird.",null,null,null,""]
["> 2 Jahre alt, männlich",0.6,null,null,null,0,0,0,null,"Ergebnisse und Bemerkungen sind weiter ",null,null,null,""]
["> 2 Jahre alt, männlich",0.6,null,null,null,0,0,0,null,"unten im gelb hinterlegten Bereich zu finden.",null,null,null,""]
["1 bis 2 Jahre alt, weiblich",0.4,null,null,null,0,0,0,null,null,null,null,null,""]
["1 bis 2 Jahre alt, weiblich",0.4,null,null,null,0,0,0,null,null,null,null,null,""]
["1 bis 2 Jahre alt, männlich",0.4,null,null,null,0,0,0,null,null,null,null,null,""]
["1 bis 2 Jahre alt, männlich",0.4,null,null,null,0,0,0,null,null,null,null,null,""]
["> 160 bis 365 Tage alt, weibl.",0.33,null,null,null,0,0,0,null,null,null,null,null,""]
["> 160 bis 365 Tage alt, weibl.",0.33,null,null,null,0,0,0,null,"geltende Bestossungslimite der Alp:",null,null,null,""]
["> 160 bis 365 Tage alt, männl.",0.33,null,null,null,0,0,0,null,"Normalbesatz *:",null,null,null,""]
["> 160 bis 365 Tage alt, männl.",0.33,null,null,null,0,0,0,null,"Schafe (ohne Milchschafe):",null,null,null,""]
["bis 160 Tage alt, weiblich",0.13,null,null,null,0,0,0,null,"u",null,"NST",null,""]
["bis 160 Tage alt, weiblich",0.13,null,null,null,0,0,0,null,"übrige rauhfutterverzehrende Nutztiere:",null,null,null,""]
["bis 160 Tage alt, männlich",0.13,null,null,null,0,0,0,null,"u",null,"NST",null,""]
["bis 160 Tage alt, männlich",0.13,null,null,null,0,0,0,null,"* Falls kein Normalbesatz, dann 0 (Null) eintragen.",null,null,null,""]
["Pferde, Ponies, Esel, Maulesel, Maultiere",null,null,null,null,null,null,null,null,"NST = Normalstoss"]
["Widerristhöhe mind. 148 cm",null,null,null,null,null,null,null,null,null,null,null,null,""]
["über 900 Tage alt",0.7,null,null,null,{"$f":"IF(OR(ISBLANK(D29),ISBLANK(E29)),0,E29-D29+1)","v":0},0,{"$f":"B29*C29","v":0},null,null,null,null,null,""]
["über 900 Tage alt",0.7,null,null,null,0,0,0,null,null,null,null,null,""]
["zw. 180 Tage und 900 Tage alt",0.5,null,null,null,0,0,0,null,null,null,null,null,""]
["zw. 180 Tage und 900 Tage alt",0.5,null,null,null,0,0,0,null,null,null,null,null,""]
["bis 180 Tage alt",0.3,null,null,null,0,0,0,null,null,null,null,null,""]
["Widerristhöhe bis 148 cm"]
["über 900 Tage alt",0.35,null,null,null,0,0,0,null,null,null,null,null,""]
["über 900 Tage alt",0.35,null,null,null,0,0,0,null,null,null,null,null,""]
["zw. 180 Tage und 900 Tage alt",0.25,null,null,null,0,0,0,null,null,null,null,null,""]
["bis 180 Tage alt",0.15,null,null,null,0,0,0,null,null,null,null,null,""]
["Schafe"]
["Milchschafe",0.25,null,null,null,{"$f":"IF(OR(ISBLANK(D40),ISBLANK(E40)),0,E40-D40+1)","v":0},{"$f":"C40*B40*F40/100","v":0},{"$f":"B40*C40","v":0},null,"Ergebnisse und Bemerkungen",null,null,null,{"$f":"IF(AND(MONTH(E40)>9,MONTH(E40)<=12),1,\"\")","v":""}]
["Milchschafe",0.25,null,null,null,{"$f":"IF(OR(ISBLANK(D41),ISBLANK(E41)),0,E41-D41+1)","v":0},0,{"$f":"B41*C41","v":0},null,"Normalbesatz:",null," %-Ausnutzung",null,""]
["andere Schafe > 1-jährig",0.17,null,null,null,{"$f":"IF(OR(ISBLANK(D42),ISBLANK(E42)),0,E42-D42+1)","v":0},{"$f":"C42*B42*F42/100","v":0},{"$f":"B42*C42","v":0},null,{"$f":"IF(AND(ISBLANK(K23),J43<>0),\"oben den Normalbesatz für Schafe eintragen.\",\"Schafe (ohne Milchschafe):\")","v":"Schafe (ohne Milchschafe):"},null,null,null,{"$f":"IF(AND(MONTH(E42)>9,MONTH(E42)<=12),1,\"\")","v":""}]
["andere Schafe > 1-jährig",0.17,null,null,null,0,0,0,null,{"$f":"SUM(G42:G49)","v":0},"NST",{"$f":"IF(ISERROR(J43/K23),\"-\",J43/K23)","v":"-"},null,""]
["andere Schafe > 1-jährig",0.17,null,null,null,0,0,0,null,{"$f":"IF(AND(ISBLANK(K25),J45<>0),\"oben den Normalbesatz der Alp eintragen.\",\"übrige raufutterverzehrende Tiere:\")","v":"übrige raufutterverzehrende Tiere:"},null,null,null,""]
["Jungschafe über 180 bis 365 Tage alt",0.06,null,null,null,0,0,0,null,{"$f":"SUM(G3:G26)+SUM(G29:G33)+SUM(G35:G38)+SUM(G40:G41)+SUM(G51:G56)+SUM(G58:G61)","v":0},"NST",{"$f":"IF(ISERROR(J45/K25),\"-\",J45/K25)","v":"-"},null,""]
["Jungschafe über 180 bis 365 Tage alt",0.06,null,null,null,0,0,0,null,{"$f":"IF(AND(OR(ISBLANK(K23),K23=0),SUM(G42:G49)>0),\"Schafhaltung ohne verfügten Normalbesatz.\",\"\")","v":""},null,null,null,""]
["Jungschafe über 180 bis 365 Tage alt",0.06,null,null,null,0,0,0,null,{"$f":"IF(AND(J43>=K23*1.1,K23>0),\"Der Normalbesatz für Schafe ist überschritten.\",\"\")","v":""},{"$f":"IF(AND(K43>=L25*1.1,L25>0),\"Der Normalbesatz für Schafe ist überschritten.\",\"\")","v":{"$error":"#VALUE!"}},"",null,""]
["Lämmer bis 180 Tage alt",0.03,null,null,null,0,0,0,null,{"$f":"IF(AND(J45>=K25*1.1,K25>0),\"Der Normalbesatz ist überschritten.\",\"\")","v":""},{"$f":"IF(AND(K45>=L27*1.1,L27>0, (K45-D8*0.2*G8/100-D10*0.2*G10/100-D11*0.2*G11/100)>=L27*1.1),\"Der Normalbesatz ist überschritten.\",\"\")","v":{"$error":"#VALUE!"}},{"$error":"#VALUE!"},null,""]
["Lämmer bis 180 Tage alt",0.03,null,null,null,0,0,0,null,{"$f":"IF(OR(L45<0.75,L43<0.75), \"Bestossung unter 75 % vom Normalbesatz! \",\"\")","v":""},null,null,null,""]
["Ziegen",null,null,null,null,null,null,null,null,{"$f":"IF(N62>0,\"Abtrieb von mind. 1 Tierkategorie nach 30. 9.!\",\"\")","v":""}]
["Milchzeigen",0.2,null,null,null,{"$f":"IF(OR(ISBLANK(D51),ISBLANK(E51)),0,E51-D51+1)","v":0},0,{"$f":"B51*C51","v":0},null,null,null,null,null,""]
["Milchziegen",0.2,null,null,null,0,0,0,null,"Total in Grossvieheinheiten:",null,null,null,""]
["andere weibliche Ziegen > 1-jährig",0.17,null,null,null,0,0,0,null,"Rindvieh",{"$f":"SUM(H3:H26)","v":0},"GVE",null,""]
["andere weibliche Ziegen > 1-jährig",0.17,null,null,null,0,0,0,null,"Pferde, Esel u.ä.",{"$f":"SUM(H29:H33)+SUM(H35:H38)","v":0},"GVE",null,""]
["Jungziegen über 180 bis 365 Tage alt",0.06,null,null,null,0,0,0,null,"Ziegen",{"$f":"SUM(H51:H56)","v":0},"GVE",null,""]
["Zicklein bis 180 Tage alt",0.03,null,null,null,0,0,0,null,"Lama, Alpaka",{"$f":"SUM(H58:H61)","v":0},"GVE",null,""]
["Lamas, Alpakas",null,null,null,null,null,null,null,null,"Schafe",{"$f":"SUM(H40:H49)","v":0},"GVE"]
["Lamas über 2-jährig",0.17,null,null,null,{"$f":"IF(OR(ISBLANK(D58),ISBLANK(E58)),0,E58-D58+1)","v":0},0,{"$f":"B58*C58","v":0},null,null,null,null,null,""]
["Lamas unter 2-jährig",0.11,null,null,null,0,0,0,null,null,null,null,null,""]
["Alpakas über 2-jährig",0.11,null,null,null,0,0,0,null,null,null,null,null,""]
["Alpakas unter 2-jährig",7.0000000000000007E-2,null,null,null,0,0,0,null,"Auf dem zweiten Tabellenblatt (s. unten",null,null,null,""]
[null,null,null,null,null,null,null,null,null,"\"Information\") finden Sie weitere Erläuterungen.",null,null,null,{"$f":"SUM(N3:N61)","v":0}]
[]
[]
["Direktzahlungsverordnung: Art. 26 - 34, Art. 38 - 41 und 47 - 49 sowie Anhänge 2 und 7"]
["http://www.admin.ch/opc/de/classified-compilation/20130216/index.html"]
["Hinweis: Diese Anwendung erlaubt die Berechnung der Bestossung einer Alp. Sie dient als Hilfestellung, um die Einhaltung des verfügten Normalbesatzes einer Alp zu überprüfen. Für Tiergattungen, welche über die Tierverkehrsdatenbank (TVD) erfasst werden, ist die vorliegende Berechnung weniger genau als jene in der TVD, da ein möglicher GVE-Faktorwechsel während der Alpdauer aufgrund des Alters eines Tieres nicht automatisch berücksichtigt wird. Diese Berechnung hat keine Verbindlichkeit oder Beweiskraft im Zusammenhang mit der Beantragung, der Berechnung oder der Auszahlung von Sömmerungsbeiträgen oder anderen Direktzahlungen. Für Fehler in dieser Anwendung und für falsche Ergebnisse wird jede Haftung ausgeschlossen. Abteilung Landwirtschaft des Kantons Glarus, im Januar 2015."]

{"sheet":"Information","index":1,"n_rows":34,"n_cols":2,"rows_kept":34,"cut":false,"hidden":false,"merged":[]}
["Berechnung von Normalstoss (NST) und Normalbesatz"]
["Formel: ","GVE x Anzahl Alptage : 100"]
[]
["Beispiel: ","1 Rind über 2-jährig ist während 120 Tagen auf der Alp: "]
[null,"0,6 x 120 / 100 = 0,72 NST"]
[]
[null,"1 Kuh ist während 90 Tagen auf der Alp:"]
[null,"1 x 90 / 100 = 0,9 NST "]
[]
["Für jedes Tier wird der GVE-Wert  anhand der Alptage in NST umgerechnet. Die Summe aller Normalstösse einer Alp ergibt den "]
["aktuellen Besatz der Alp. Der Normalbesatz ist also abhängig von der Anzahl Tiere, der  Tierkategorie und auch von der Alpungsdauer."]
["Beispiel:  Werden 70 GVE während 120 Tagen gealpt, so ergibt das den gleichen Besatz, wie wenn 80 GVE während 105 Tagen gealpt werden."]
[]
["Sömmerungsbeitrag: Normalbesatz und Beitragshöhe nach Direktzahlungsverordnung"]
["Die Kantone verfügen für jede Alp den Normalbesatz. Auf dessen Grundlage wird der Sömmerungsbeitrag ausbezahlt."]
["Höhe des  Sömmerungsbeitrages = [Anzahl NST gemäss Normalbesatz] x Beitragsansatz"]
["Beispiel: Alp mit verfügten 30 NST Schafe (Umtriebsweide) und 70 NST anderen raufutterverzehrenden Nutztieren (z.B. Milchvieh und Jungvieh):"]
[null,"30 NST x Fr. 320.- + 70 NST x Fr. 400.- = Fr. 37'600.- Sömmerungsbeitrag."]
[]
["Überschreitung des Normalbesatzes"]
["Fall 1:","Der effektive Tierbesatz übersteigt den verfügten Normalbesatz um 10 bis 15 %:  Beitragskürzung um 25 %."]
[null,"Bsp.: 70 NST verfügt, effektiv sind 78 NST auf der Alp: 78/70 x 100 = 111,4% →  Überschreitung um 11,4%, Beitrag wird um 25% gekürzt."]
[null,"Bsp.: Bei verfügten 70 NST sind effektiv 76 NST auf der Alp: 76/70 x 100 = 108,6% → Überschreitung um 8,6%, keine Kürzung."]
["Fall 2:","Der effektive Tierbesatz übersteigt den verfügten Normalbesatz um mehr als 15 %:  kein Sömmerungsbeitrag."]
[null,"Bsp.: Bei verfügten 70 NST sind effektiv 82 NST auf der Alp: 82/70 x 100 = 117,1% d.h. Überschreitung um 17,1%, kein Beitrag."]
[]
["Unterschreitung des Normalbesatzes:"]
[null,"Wird der Normalbesatz zu weniger als 75 % ausgenutzt, so wird der Beitrag nicht nach dem verfügten Normalbesatz,"]
[null,"sondern nach dem effektiven Besatz ausgerichtet."]
[null,"Bsp.: Es sind 70 NST verfügt aber effektiv sind nur 51 NST gesömmert worden: 51/70 x 100 = 72,9 %  (also weniger als 75%)"]
[null,"→ statt 70 NST x Fr. 400.- werden in diesem Fall 51 NST x Fr. 400.- ausbezahlt (effektiver Besatz als Grundlage)."]
[]
["u Solange der effektive Besatz im Bereich zwischen mindestens 75 % und unterhalb von 110 % des verfügten Normalbesatzes liegt,"]
["wird der ganze Sömmerungsbeitrag ausgerichtet, d.h. [verfügter Normalbesatz] x [Beitragsansatz]; vgl. Art. 49 DZV."]

{"sheet":"Tabelle3","index":2,"n_rows":0,"n_cols":0,"rows_kept":0,"cut":false,"hidden":false,"merged":[]}